bitfinex-derivatives/quotes_SOLF0:USTF0_20250821
["timestamp","ask_amount","ask_price","bid_price","bid_amount"]
[1755798745200,3.05,181.08,181.04,4.58931714]
[1755798745505,3.05,181.07,181.04,4.58931714]
[1755798745706,6.12662358,181.09,181.02,5.63931714]
[1755798745906,6.12662358,181.09,181.02,1.05]
[1755798746408,0.03859656,181.07,181.02,1.05]
[1755798746602,3.05,181.06,181.02,1.05]
[1755798748106,3.07662358,181.05,181.0,4.58931714]
[1755798748606,3.05,180.99,180.98,4.58931714]
[1755798748810,3.05,180.99,180.96,239.60070104]
[1755798749006,3.05,180.99,180.96,235.0113839]
[1755798749410,3.09231388,180.99,180.96,235.0113839]
[1755798749713,3.09231388,180.99,180.94,141.75931714]
[1755798749912,3.09231388,180.99,180.95,1.05]
[1755798751317,3.05,180.98,180.94,136.12]
[1755798751508,3.05,180.97,180.94,136.12]
[1755798751708,3.05,180.97,180.93,1.05]
[1755798751903,3.05,180.97,180.94,1.05]
[1755798753810,3.05,180.98,180.94,1.05]
[1755798754306,0.04231388,180.99,180.92,3.07662358]
[1755798754513,0.04231388,180.99,180.93,1.05]
[1755798754713,0.04231388,180.99,180.95,5.5271]
[1755798754915,0.04231388,180.99,180.96,1.05]
[1755798756110,3.09231388,180.99,180.92,4.12662358]
[1755798756310,3.09231388,180.99,180.92,1.05]
[1755798760210,3.09231388,180.99,180.92,6.578]
[1755798760417,3.09231388,180.99,180.92,1.05]
[1755798760811,3.05,180.97,180.9,136.12]
[1755798761014,3.05,180.97,180.88,3.07662358]
[1755798761209,3.05,180.95,180.86,375.22662358]
[1755798761619,0.03650562,180.94,180.86,375.22662358]
[1755798762012,0.03650562,180.94,180.87,5.5295]
[1755798762211,0.03650562,180.94,180.86,375.22662358]
[1755798762616,0.03650562,180.94,180.87,5.5296]
[1755798763015,0.03650562,180.94,180.86,375.22662358]
[1755798763215,0.03650562,180.94,180.86,380.75642358]
[1755798763516,0.03650562,180.94,180.86,375.22662358]
[1755798763723,0.03650562,180.94,180.87,5.5294]
[1755798763910,3.05,180.93,180.86,375.22662358]
[1755798764110,3.05,180.93,180.86,372.15]
[1755798764310,3.05,180.93,180.86,6.5797]
[1755798764616,3.05,180.93,180.86,1.05]
[1755798765520,3.05,180.93,180.87,5.5295]
[1755798765918,3.05,180.93,180.86,1.05]
[1755798766123,3.05,180.93,180.87,5.5296]
[1755798766314,3.05,180.93,180.86,1.05]
[1755798767319,0.03650562,180.94,180.86,1.05]
[1755798767524,0.03650562,180.94,180.88,1.05]
[1755798767715,0.03650562,180.94,180.89,5.5288]
[1755798767924,0.03650562,180.94,180.9,1.05]
[1755798768124,3.05,180.93,180.9,1.05]
[1755798768521,3.05,180.93,180.87,3.07662358]
[1755798768730,3.05,180.93,180.86,1.05]
[1755798769424,3.05,180.93,180.86,6.5797]
[1755798769927,3.05,180.93,180.86,1.05]
[1755798770931,3.05,180.93,180.87,5.5296]
[1755798771124,3.05,180.93,180.86,1.05]
[1755798771330,0.03650562,180.94,180.89,5.5287]
[1755798771528,0.03650562,180.94,180.9,1.05]
[1755798771829,3.08650562,180.94,180.9,1.05]
[1755798772632,0.03650562,180.94,180.91,1.05]
[1755798773233,0.03650562,180.94,180.92,1.05]
[1755798773625,0.03650562,180.94,180.93,1.05]
[1755798774030,0.03650562,180.94,180.89,3.07662358]
[1755798774335,0.03650562,180.94,180.91,1.05]
[1755798774932,2.92650562,180.94,180.89,9.65542358]
[1755798775230,2.92650562,180.94,180.9,1.05]
[1755798775430,2.92650562,180.94,180.89,3.07662358]
[1755798775631,0.03650562,180.94,180.92,1.05]
[1755798775824,0.03650562,180.94,180.92,5.5281]
[1755798776029,0.03650562,180.94,180.93,1.05]
[1755798776426,0.03650562,180.94,180.91,5.5282]
[1755798776628,2.92650562,180.94,180.9,1.05]
[1755798776936,2.92650562,180.94,180.9,6.5785]
[1755798777236,2.92650562,180.94,180.9,1.05]
[1755798777237,0.03650562,180.94,180.9,1.05]
[1755798777432,0.03650562,180.94,180.9,6.5786]
[1755798777632,2.92650562,180.94,180.9,6.5786]
[1755798777936,2.92650562,180.94,180.9,1.05]
[1755798778136,2.92650562,180.94,180.91,1.05]
[1755798778439,0.03650562,180.94,180.89,3.07662358]
[1755798778731,0.03650562,180.94,180.93,1.05]
[1755798778936,0.03650562,180.94,180.93,6.5778]
[1755798781636,0.03650562,180.94,180.93,9.65442358]
[1755798782030,0.03650562,180.94,180.93,6.5778]
[1755798782634,0.03650562,180.94,180.93,1.05]
[1755798782938,0.03650562,180.94,180.91,1.05]
[1755798783337,0.03650562,180.94,180.92,1.05]
[1755798783639,0.03650562,180.94,180.91,1.05]
[1755798783933,0.03650562,180.94,180.91,6.5781]
[1755798784439,0.03650562,180.94,180.92,6.578]
[1755798784840,0.03650562,180.94,180.9,1.05]
[1755798785033,0.03650562,180.94,180.91,1.05]
[1755798785936,2.92650562,180.94,180.89,5.5287]
[1755798786135,2.92650562,180.94,180.9,1.05]
[1755798786435,2.89,180.93,180.9,1.05]
[1755798786635,2.89,180.93,180.88,143.38163583]
[1755798786935,0.03650562,180.94,180.88,143.38163583]
[1755798786936,2.92650562,180.94,180.88,144.43163583]
[1755798787438,2.92650562,180.94,180.88,149.96083583]
[1755798788239,2.92650562,180.94,180.88,144.43163583]
[1755798788441,2.92650562,180.94,180.88,143.38163583]
[1755798788640,3.07662358,180.93,180.88,143.38163583]
[1755798788842,2.89,180.92,180.86,136.2]
[1755798789639,2.89,180.89,180.86,136.2]
[1755798789838,2.89,180.9,180.85,1.05]
[1755798790138,2.89,180.88,180.85,1.05]
[1755798791346,2.89,180.88,180.8,139.25662358]
[1755798791645,2.89,180.88,180.81,1.05]
[1755798792335,2.89,180.88,180.84,1.05]
[1755798793447,0.03885495,180.89,180.84,1.05]
[1755798793647,2.89,180.87,180.84,1.05]
[1755798793849,2.89,180.88,180.8,3.07662358]
[1755798794444,2.89,180.88,180.81,5.5312]
[1755798794646,2.93134477,180.86,180.82,1.05]
[1755798795050,0.04134477,180.86,180.82,1.05]
[1755798795248,2.89,180.85,180.82,1.05]
[1755798795453,2.89,180.84,180.8,1.05]
[1755798795748,2.93134477,180.86,180.8,1.05]
[1755798796544,2.93134477,180.86,180.8,6.5817]
[1755798796850,2.93134477,180.86,180.79,136.18]
[1755798797349,2.93134477,180.86,180.79,141.712]
[1755798797549,2.93134477,180.86,180.79,136.18]
[1755798798143,3.07662358,180.85,180.79,136.18]
[1755798798350,2.89,180.84,180.77,1.05]
[1755798799046,0.03617324,180.82,180.8,6.5817]
[1755798799741,0.03617324,180.82,180.8,1.05]
[1755798801553,0.03617324,180.82,180.81,1.05]
[1755798803553,0.03617324,180.82,180.8,1.05]
[1755798803856,3.09617324,180.82,180.76,375.44662358]
[1755798804152,3.09617324,180.82,180.76,377.9028]
[1755798804544,3.09617324,180.82,180.76,1.05]
[1755798805047,3.09617324,180.82,180.74,141.7336]
[1755798805253,3.09617324,180.82,180.74,136.2]
[1755798805448,3.06,180.8,180.74,136.2]
[1755798805655,3.06,180.8,180.75,5.5332]
[1755798805851,3.06,180.8,180.74,136.2]
[1755798806251,3.06,180.8,180.74,141.7334]
[1755798807156,3.06,180.8,180.74,136.2]
[1755798808551,0.03617324,180.82,180.75,1.05]
[1755798809654,0.03617324,180.82,180.78,1.05]
[1755798809855,0.03617324,180.82,180.74,136.2]
[1755798810052,0.03617324,180.82,180.79,1.05]
[1755798812850,0.03617324,180.82,180.76,1.05]
[1755798813050,0.03617324,180.82,180.79,5.5319]
[1755798813360,0.03617324,180.82,180.81,1.05]
[1755798814362,0.03617324,180.82,180.76,6.5829]
[1755798814561,0.03617324,180.82,180.76,1.05]
[1755798815764,0.03617324,180.82,180.78,1.05]
[1755798815965,0.03617324,180.82,180.79,1.05]
[1755798816164,3.09617324,180.82,180.79,1.05]
[1755798817253,0.03617324,180.82,180.79,1.05]
[1755798817658,0.03617324,180.82,180.8,1.05]
[1755798817866,0.03617324,180.82,180.81,1.05]
[1755798818864,0.03617324,180.82,180.78,5.5321]
[1755798819060,0.03617324,180.82,180.76,3.07662358]
[1755798819061,0.03617324,180.82,180.77,1.05]
[1755798819559,0.03617324,180.82,180.81,1.05]
[1755798822967,0.03617324,180.82,180.74,137.16260235]
[1755798823163,0.03617324,180.82,180.8,1.05]
[1755798823864,0.03617324,180.82,180.78,5.5321]
[1755798824062,0.03617324,180.82,180.79,1.05]
[1755798824374,0.03617324,180.82,180.77,1.05]
[1755798824572,0.03617324,180.82,180.79,5.5319]
[1755798824771,0.03617324,180.82,180.81,1.05]
[1755798827173,0.03617324,180.82,180.81,6.5814]
[1755798827573,3.07662358,180.9,180.84,5.5302]
[1755798827769,6.13662358,180.92,180.85,1.02]
[1755798827968,3.06,180.92,180.85,1.02]
[1755798829076,3.07662358,180.94,180.87,0.03551635]
[1755798829275,3.06,180.93,180.87,0.03551635]
[1755798830075,3.06,180.93,180.87,5.56511635]
[1755798830270,3.06,180.93,180.87,0.03551635]
[1755798830673,6.13662358,180.96,180.89,5.5288]
[1755798831372,6.13662358,180.96,180.91,0.03501048]
[1755798831573,3.06,180.95,180.91,0.03501048]
[1755798831773,3.06,180.94,180.91,0.03501048]
[1755798831969,3.06,180.94,180.91,1.05501048]
[1755798832175,3.06,180.97,180.91,1.05501048]
[1755798833180,3.06,180.97,180.91,6.58331048]
[1755798833477,3.06,180.97,180.91,1.05501048]
[1755798834883,3.07662358,180.96,180.91,0.03501048]
[1755798835075,3.08,180.94,180.91,0.03501048]
[1755798835279,3.08,180.93,180.91,0.03501048]
[1755798835479,3.08,180.94,180.91,0.03501048]
[1755798835680,3.08,180.92,180.91,0.03501048]
[1755798836081,3.08,180.95,180.91,0.03501048]
[1755798836379,3.08,180.94,180.91,0.03501048]
[1755798836973,3.08,180.95,180.91,0.03501048]
[1755798837179,3.08,180.94,180.91,0.03501048]
[1755798837777,3.07662358,180.96,180.91,0.03501048]
[1755798837778,3.08,180.93,180.91,0.03501048]
[1755798838385,6.15662358,180.98,180.91,1.04501048]
[1755798838579,3.08,180.98,180.91,1.04501048]
[1755798838780,3.08,180.98,180.92,5.5278]
[1755798840485,374.57662358,181.0,180.92,5.5278]
[1755798840486,6.18776451,181.06,180.92,3.07662358]
[1755798840688,3.07662358,181.03,180.93,1.01]
[1755798840885,3.08,181.02,180.94,5.5272]
[1755798841787,3.08,181.02,180.93,1.01]
[1755798842189,3.08,181.02,180.93,6.5375]
[1755798842388,3.08,181.02,180.93,1.01]
[1755798842589,3.08,181.02,180.96,0.03527232]
[1755798843988,3.07662358,181.01,180.96,0.03527232]
[1755798844289,3.08,180.98,180.96,0.03527232]
[1755798844487,3.08,180.97,180.93,1.01]
[1755798844789,3.08,180.97,180.93,6.5377]
[1755798845195,3.08,180.97,180.93,1.01]
[1755798845597,3.08,181.0,180.93,1.01]
[1755798845801,3.08,181.0,180.9,4.08662358]
[1755798846193,3.08,180.98,180.9,4.08662358]
[1755798846904,3.08,180.98,180.92,0.03489082]
[1755798851007,6.15662358,180.98,180.92,0.03489082]
[1755798851198,3.08,180.97,180.92,0.03489082]
[1755798854096,3.07662358,180.98,180.92,0.03489082]
[1755798854498,3.08,180.94,180.92,0.03489082]
[1755798855297,3.07662358,180.98,180.92,0.03489082]
[1755798855504,3.08,180.97,180.92,0.03489082]
[1755798855908,3.07662358,180.94,180.92,0.03489082]
[1755798856201,3.08,180.93,180.92,0.03489082]
[1755798856407,3.08,180.93,180.86,144.00728378]
[1755798857505,3.08,180.92,180.88,0.03515639]
[1755798857704,3.07662358,180.94,180.88,0.03515639]
[1755798858005,3.08,180.89,180.88,0.03515639]
[1755798858806,3.07662358,180.94,180.88,0.03515639]
[1755798859004,3.08,180.92,180.89,1.02]
[1755798859898,3.08,180.91,180.88,0.03515639]
[1755798860100,3.08,180.93,180.88,0.03515639]
[1755798860306,3.08,180.91,180.88,0.03515639]
[1755798861704,3.08,180.91,180.88,1.05515639]
[1755798862207,3.08,180.95,180.88,1.05515639]
[1755798862402,3.07662358,180.94,180.88,0.03515639]
[1755798862605,3.08,180.93,180.86,144.00728378]
[1755798863110,3.08,180.93,180.86,149.53718378]
[1755798863408,3.07662358,180.94,180.88,0.03557442]
[1755798863809,3.02,180.92,180.88,0.03557442]
[1755798864108,3.02,180.93,180.88,0.03557442]
[1755798865005,3.07662358,180.94,180.88,0.03557442]
[1755798865211,3.02,180.91,180.88,0.03557442]
[1755798865506,3.02,180.9,180.88,0.03557442]
[1755798865912,3.02,180.89,180.88,0.03557442]
[1755798866101,3.02,180.92,180.88,0.03557442]
[1755798866502,3.07662358,180.94,180.88,0.03557442]
[1755798866711,3.02,180.93,180.88,0.03557442]
[1755798867202,3.02,180.91,180.88,0.03557442]
[1755798867508,3.02,180.9,180.88,0.03557442]
[1755798868009,3.02,180.93,180.88,0.03557442]
[1755798868208,3.02,180.92,180.88,0.03557442]
[1755798868408,3.02,180.91,180.88,0.03557442]
[1755798868709,3.02,180.9,180.88,0.03557442]
[1755798869911,3.02,180.89,180.88,0.03557442]
[1755798870106,3.07662358,180.93,180.88,0.03557442]
[1755798870304,3.07662358,180.93,180.85,1.02]
[1755798870510,3.02,180.91,180.85,1.02]
[1755798870910,3.02,180.91,180.86,0.03588667]
[1755798871109,3.07662358,180.93,180.86,0.03588667]
[1755798871415,3.02,180.89,180.86,0.03588667]
[1755798872312,3.07662358,180.93,180.86,0.03588667]
[1755798872313,3.02,180.88,180.86,0.03588667]
[1755798873204,3.02,180.87,180.86,0.03588667]
[1755798873610,3.02,180.87,180.82,141.6109]
[1755798873911,3.02,180.85,180.82,137.1]
[1755798874215,3.02,180.88,180.83,1.05791651]
[1755798874409,3.02,180.9,180.83,1.05791651]
[1755798876714,3.02,180.9,180.83,0.03791651]
[1755798876915,3.02,180.88,180.83,0.03791651]
[1755798877315,3.02,180.88,180.82,136.08]
[1755798877517,3.07662358,180.87,180.82,136.08]
[1755798877815,3.02,180.85,180.84,0.0405635]
[1755798880813,6.09662358,180.85,180.77,137.1]
[1755798881014,3.02,180.84,180.77,137.1]
[1755798882119,0.03925538,180.82,180.77,136.08]
[1755798882316,0.03925538,180.82,180.79,1.06]
[1755798882725,3.02,180.81,180.77,136.08]
[1755798882920,3.05925538,180.82,180.78,1.06]
[1755798883121,0.03925538,180.82,180.79,1.06]
[1755798883321,3.05925538,180.82,180.79,6.592]
[1755798884020,3.05925538,180.82,180.79,1.06]
[1755798887520,0.03925538,180.82,180.79,5.532]
[1755798887719,0.03925538,180.82,180.8,1.06]
[1755798887927,0.03925538,180.82,180.81,1.06]
[1755798888126,0.03925538,180.82,180.77,139.15662358]
[1755798888127,0.03925538,180.82,180.78,5.5323]
[1755798888623,0.03925538,180.82,180.8,1.06]
[1755798890823,0.03925538,180.82,180.77,139.15662358]
[1755798890824,0.03925538,180.82,180.79,5.532]
[1755798891022,0.03925538,180.82,180.81,1.06]
[1755798891420,0.03925538,180.82,180.81,6.5914]
[1755798891822,0.03925538,180.82,180.81,1.06]
[1755798894722,0.03925538,180.82,180.78,1.06]
[1755798894928,0.03925538,180.82,180.79,1.06]
[1755798895826,0.03925538,180.82,180.8,1.06]
[1755798896129,0.03925538,180.82,180.81,1.06]
[1755798897621,0.03925538,180.82,180.81,6.5914]
[1755798899129,0.03925538,180.82,180.81,1.06]
[1755798900330,0.03925538,180.82,180.81,6.5914]
[1755798901223,0.03925538,180.82,180.81,9.66802358]
[1755798902432,3.04,180.9,180.81,3.63662358]
[1755798902631,3.04,180.9,180.84,4.13662358]
[1755798903336,3.04,180.9,180.86,1.06]
[1755798903735,3.04,180.9,180.87,1.06]
[1755798903935,3.04,180.89,180.86,0.04154832]
[1755798904835,3.04,180.89,180.86,1.10154832]
[1755798906137,3.04,180.91,180.86,0.04154832]
[1755798906541,3.04,180.91,180.81,140.17662358]
[1755798907037,3.07662358,180.99,180.76,6.17677486]
[1755798907038,3.04,180.85,180.78,1.1]
[1755798907739,3.04,180.85,180.79,1.1]
[1755798908134,3.04,180.89,180.8,3.07662358]
[1755798908438,0.03584111,180.84,180.83,1.1]
[1755798909039,3.04,180.89,180.83,1.1]
[1755798909234,0.0386924,180.85,180.83,1.1]
[1755798910836,3.0786924,180.85,180.8,4.17662358]
[1755798911029,3.04,180.84,180.8,4.17662358]
[1755798911231,3.04,180.84,180.81,1.1]
[1755798912631,0.0386924,180.85,180.8,3.07662358]
[1755798912632,3.04,180.83,180.8,3.07662358]
[1755798912837,3.04,180.84,180.78,8.76603527]
[1755798913039,3.04,180.84,180.78,5.68941169]
[1755798913534,3.04,180.84,180.78,1.1]
[1755798915040,3.04,180.84,180.77,10.12191169]
[1755798915041,3.04,180.84,180.77,5.5325]
[1755798917442,6.11662358,180.84,180.76,136.02]
[1755798917641,3.07662358,180.82,180.76,136.02]
[1755798917841,3.04,180.8,180.76,136.02]
[1755798918145,3.04,180.78,180.76,136.02]
[1755798918740,0.03968311,180.8,180.76,136.02]
[1755798918942,3.04,180.78,180.73,11.22311169]
[1755798919142,3.04,180.78,180.74,1.1]
[1755798919640,3.04,180.78,180.74,6.6335]
[1755798919942,0.03968311,180.8,180.74,1.1]
[1755798920142,0.03968311,180.8,180.74,3.07662358]
[1755798920342,0.03968311,180.8,180.78,1.1]
[1755798920746,0.03968311,180.8,180.78,6.6323]
[1755798920937,0.03968311,180.8,180.79,1.1]
[1755798921246,0.03968311,180.8,180.77,1.1]
[1755798921442,0.03968311,180.8,180.75,1.1]
[1755798921643,0.03968311,180.8,180.74,7.66603527]
[1755798921848,0.03968311,180.8,180.76,1.1]
[1755798922044,3.04,180.79,180.75,4.58941169]
[1755798922249,3.04,180.79,180.75,5.68941169]
[1755798922448,0.03968311,180.8,180.76,1.1]
[1755798923148,3.13968311,180.8,180.76,1.1]
[1755798923956,0.03968311,180.8,180.77,1.1]
[1755798924552,0.03968311,180.8,180.76,3.07662358]
[1755798924758,0.03968311,180.8,180.78,1.1]
[1755798924959,0.03968311,180.8,180.79,1.1]
[1755798925558,0.03968311,180.8,180.79,6.632]
[1755798926360,0.03968311,180.8,180.79,142.652]
[1755798926558,9.28776451,180.92,180.86,1.1]
[1755798926862,3.1,180.92,180.84,3.07662358]
[1755798927860,3.07662358,180.92,180.86,0.03737991]
[1755798928061,3.1,180.91,180.86,0.03737991]
[1755798928364,3.1,180.88,180.86,0.03737991]
[1755798928565,3.1,180.87,180.86,0.03737991]
[1755798929563,3.66,180.87,180.77,143.68603527]
[1755798929864,3.1,180.87,180.78,5.5322]
[1755798930963,0.04013465,180.84,180.77,8.60922358]
[1755798931266,3.1,180.83,180.76,1.1]
[1755798931762,0.04164225,180.81,180.77,1.14]
[1755798931967,3.14164225,180.81,180.77,1.14]
[1755798933360,3.14164225,180.81,180.77,5.5326]
[1755798933560,0.04164225,180.81,180.78,1.14]
[1755798934170,3.14164225,180.81,180.77,1.14]
[1755798935071,3.14164225,180.81,180.75,9.74972358]
[1755798935072,3.1,180.79,180.75,9.74972358]
[1755798935268,3.1,180.79,180.75,4.21662358]
[1755798935671,3.1,180.79,180.76,1.14]
[1755798936272,3.1,180.8,180.76,1.14]
[1755798937768,0.04164225,180.81,180.78,1.14]
[1755798937969,0.04164225,180.81,180.8,1.14]
[1755798938373,0.04164225,180.81,180.8,6.6717]
[1755798939074,0.04164225,180.81,180.8,1.14]
[1755798940976,0.04164225,180.81,180.77,4.21662358]
[1755798941878,0.04164225,180.81,180.77,8.60912358]
[1755798942077,0.04164225,180.81,180.79,1.14]
[1755798943478,0.04164225,180.81,180.8,1.14]
[1755798944677,0.04164225,180.81,180.8,6.6717]
[1755798944878,0.04164225,180.81,180.8,1.14]
[1755798948782,0.04164225,180.81,180.8,6.6717]
[1755798949880,0.04164225,180.81,180.8,1.14]
[1755798955779,6.18776451,180.92,180.84,1.13]
[1755798955990,2.97,180.92,180.85,4.20662358]
[1755798957083,2.97,180.91,180.87,0.0381077]
[1755798957284,2.97,180.9,180.87,0.0381077]
[1755798957784,2.97,180.93,180.87,4.24473128]
[1755798958184,2.97,180.93,180.87,9.73602358]
[1755798958487,2.97,180.93,180.88,0.03561599]
[1755798958677,2.97,180.93,180.89,1.13]
[1755798958881,2.97,180.92,180.89,1.13]
[1755798959078,2.97,180.92,180.88,0.03561599]
[1755798959281,2.97,180.92,180.88,1.13]
[1755798959581,2.97,180.92,180.88,1.16994619]
[1755798959886,3.07662358,180.96,180.88,1.16994619]
[1755798960086,2.97,180.91,180.88,0.03994619]
[1755798960281,2.97,180.91,180.87,4.20662358]
[1755798960486,2.97,180.94,180.88,1.13]
[1755798960689,2.97,180.94,180.88,1.16708575]
[1755798961580,2.97,180.94,180.88,0.03708575]
[1755798961786,2.97,180.93,180.88,0.03708575]
[1755798963088,3.07662358,180.92,180.88,0.03708575]
[1755798963288,2.97,180.91,180.88,0.03708575]
[1755798963685,3.07662358,180.9,180.88,0.03708575]
[1755798963888,2.97,180.89,180.79,4.24662358]
[1755798964189,2.97,180.89,180.79,9.77842358]
[1755798964389,2.97,180.89,180.79,4.24662358]
[1755798964591,2.97,180.89,180.8,1.17]
[1755798964791,2.97,180.89,180.82,1.17]
[1755798965090,0.04228145,180.86,180.82,1.17]
[1755798965289,0.04228145,180.86,180.83,6.7006]
[1755798965591,0.04228145,180.86,180.83,1.17]
[1755798966193,3.01228145,180.86,180.83,1.17]
[1755798966980,0.04228145,180.86,180.84,1.17]
[1755798967187,0.04228145,180.86,180.81,3.07662358]
[1755798967188,0.04228145,180.86,180.85,1.17]
[1755798967383,0.04228145,180.86,180.85,4.24662358]
[1755798968992,0.04228145,180.86,180.83,3.07662358]
[1755798969291,0.04228145,180.86,180.84,1.17]
[1755798970486,0.04228145,180.86,180.83,4.24662358]
[1755798970789,3.01228145,180.86,180.83,1.17]
[1755798970987,3.01228145,180.86,180.81,5.5313]
[1755798971292,3.01228145,180.86,180.82,1.17]
[1755798971482,3.01228145,180.86,180.8,3.07662358]
[1755798971483,2.97,180.85,180.8,3.07662358]
[1755798971681,2.97,180.85,180.81,1.17]
[1755798972495,0.04228145,180.86,180.82,1.17]
[1755798972790,3.01228145,180.86,180.82,1.17]
[1755798973289,2.97,180.85,180.82,1.17]
[1755798973691,0.04228145,180.86,180.82,1.17]
[1755798973692,3.01228145,180.86,180.82,1.17]
[1755798973991,0.04228145,180.86,180.81,5.5313]
[1755798974191,3.01228145,180.86,180.82,1.17]
[1755798974388,2.97,180.84,180.8,4.24662358]
[1755798974588,2.97,180.84,180.8,8.60832358]
[1755798974787,3.01228145,180.86,180.8,4.24662358]
[1755798975290,3.01228145,180.86,180.8,9.77832358]
[1755798975787,3.01228145,180.86,180.81,5.5314]
[1755798976092,3.01228145,180.86,180.82,1.17]
[1755798976392,2.97,180.85,180.82,1.17]
[1755798976988,2.97,180.85,180.8,3.07662358]
[1755798977291,2.97,180.84,180.8,4.24662358]
[1755798977493,2.97,180.84,180.8,9.77832358]
[1755798977889,0.04228145,180.86,180.81,1.17]
[1755798978090,2.97,180.85,180.81,1.17]
[1755798978292,0.04228145,180.86,180.81,1.17]
[1755798978489,2.97,180.85,180.81,1.17]
[1755798978993,2.97,180.84,180.81,1.17]
[1755798981195,2.97,180.84,180.8,4.23662358]
[1755798981996,2.97,180.83,180.8,4.23662358]
[1755798982793,3.03,180.85,180.8,3.07662358]
[1755798982987,0.04228145,180.86,180.8,3.07662358]
[1755798983294,3.03,180.83,180.8,4.23662358]
[1755798983495,3.07228145,180.86,180.82,1.16]
[1755798983693,3.07228145,180.86,180.83,1.16]
[1755798983895,3.07228145,180.86,180.8,4.23662358]
[1755798984099,3.07228145,180.86,180.8,9.76832358]
[1755798984293,3.07228145,180.86,180.8,4.23662358]
[1755798984494,3.07228145,180.86,180.81,5.5311]
[1755798984692,3.07228145,180.86,180.83,1.16]
[1755798984891,3.03,180.85,180.81,1.16]
[1755798985996,3.03,180.84,180.81,1.16]
[1755798986395,3.03,180.83,180.8,3.07662358]
[1755798986595,3.03,180.83,180.8,4.23662358]
[1755798986889,0.04228145,180.86,180.8,4.23662358]
[1755798986890,3.07228145,180.86,180.8,3.07662358]
[1755798988396,3.07228145,180.86,180.8,8.60832358]
[1755798988802,3.07228145,180.86,180.8,3.07662358]
[1755798989395,3.07228145,180.86,180.79,1.16]
[1755798989600,3.07228145,180.86,180.78,278.56031059]
[1755798989797,3.11890503,180.86,180.76,1.16]
[1755798989996,3.03,180.85,180.76,6.6928]
[1755798990201,3.03,180.85,180.76,1.16]
[1755798990498,3.03,180.85,180.77,5.5325]
[1755798990700,0.03874603,180.82,180.77,5.5325]
[1755798990899,0.03874603,180.82,180.75,1.16]
[1755798991099,3.03,180.78,180.75,6.6931]
[1755798991696,3.03,180.78,180.75,1.16]
[1755798991992,3.06979402,180.78,180.75,1.16]
[1755798993693,0.03979402,180.78,180.76,1.16]
[1755798996801,0.03979402,180.78,180.77,1.16]
[1755798997396,0.03979402,180.78,180.77,6.6926]
[1755798998103,0.03979402,180.78,180.77,1.16]
[1755798999004,0.03979402,180.78,180.76,4.23662358]
[1755798999299,0.03979402,180.78,180.76,3.07662358]
[1755798999506,0.03979402,180.78,180.77,1.16]
[1755798999905,0.03979402,180.78,180.76,3.07662358]
[1755799000203,0.03979402,180.78,180.76,4.23662358]
[1755799000594,0.03979402,180.78,180.77,1.16]
[1755799002801,0.03979402,180.78,180.75,135.86]
[1755799003106,0.03979402,180.78,180.76,1.16]
[1755799004007,3.03,180.77,180.74,1.16]
[1755799004203,3.03,180.77,180.74,137.02]
[1755799004701,3.03,180.77,180.74,135.86]
[1755799004898,0.03979402,180.78,180.75,1.16]
[1755799005097,3.03,180.77,180.74,137.02]
[1755799006508,0.03979402,180.78,180.76,1.16]
[1755799007308,0.03979402,180.78,180.74,138.93662358]
[1755799007504,0.03979402,180.78,180.75,1.16]
[1755799007910,3.06979402,180.78,180.75,1.16]
[1755799008112,0.03979402,180.78,180.77,1.16]
[1755799008308,3.03,180.86,180.77,1.16]